bitfinex-derivatives/quotes_SOLF0:USTF0_20250911
["timestamp","ask_amount","ask_price","bid_price","bid_amount"]
[1757608098470,7.47,226.95,226.83,65.95]
[1757608098665,7.47,226.95,226.84,2.18650491]
[1757608100472,7.47,226.95,226.83,65.95]
[1757608100473,7.47,226.86,226.63,82.38]
[1757608100664,7.47,226.86,226.72,3.95]
[1757608100863,9.65650491,226.86,226.74,3.95]
[1757608101868,7.47,226.86,226.74,3.95]
[1757608103465,9.65650491,226.86,226.75,62.0]
[1757608103671,9.65650491,226.86,226.76,3.95]
[1757608105769,9.65650491,226.86,226.73,0.76732264]
[1757608105972,7.47,226.82,226.73,0.76732264]
[1757608108277,7.47,226.82,226.74,62.0]
[1757608108479,7.47,226.82,226.75,3.97]
[1757608111379,13.19,226.99,226.75,3.97]
[1757608111576,2.18650491,226.85,226.75,3.97]
[1757608115177,7.16,226.78,226.72,13.37518708]
[1757608115480,2.18650491,226.76,226.7,3.97]
[1757608115776,2.18650491,226.73,226.7,13.51116378]
[1757608115975,7.16,226.72,226.7,13.51116378]
[1757608116471,7.16,226.79,226.67,0.76750879]
[1757608116676,2.18650491,226.74,226.67,0.76750879]
[1757608116876,9.34650491,226.74,226.66,3.97]
[1757608117274,0.03252554,226.72,226.66,3.97]
[1757608118077,0.03252554,226.72,226.66,65.97]
[1757608118477,0.03252554,226.72,226.66,3.97]
[1757608121484,0.03252554,226.72,226.68,3.97]
[1757608121973,7.19252554,226.72,226.66,3.97]
[1757608122384,0.03252554,226.72,226.66,3.97]
[1757608124983,0.03252554,226.72,226.65,13.2449444]
[1757608124984,0.03252554,226.72,226.68,3.97]
[1757608125385,7.16,226.83,226.69,111.04]
[1757608125584,7.16,226.83,226.7,3.97]
[1757608126584,7.16,226.83,226.74,0.03360478]
[1757608128881,3.43042926,226.8,226.74,0.03360478]
[1757608129184,7.16,226.79,226.74,0.03360478]
[1757608130185,3.43042926,226.81,226.74,0.03360478]
[1757608130489,7.16,226.8,226.68,3.97]
[1757608130986,7.16,226.8,226.75,0.03218018]
[1757608131183,3.43042926,226.81,226.75,0.03218018]
[1757608131588,10.59042926,226.81,226.75,0.03218018]
[1757608131784,7.16,226.81,226.75,0.03218018]
[1757608138681,3.43042926,226.84,226.75,0.03218018]
[1757608138893,3.43042926,226.84,226.76,3.97]
[1757608139495,7.01,226.85,226.76,3.97]
[1757608144298,7.01,226.86,226.78,0.02950902]
[1757608145500,7.01,226.84,226.78,0.02950902]
[1757608145999,7.01,226.82,226.78,0.02950902]
[1757608146401,7.01,226.83,226.69,65.97]
[1757608146601,7.01,226.83,226.78,0.02965379]
[1757608148705,39.98,226.88,226.78,0.02965379]
[1757608148902,3.43042926,226.84,226.78,0.02965379]
[1757608149108,7.01,226.83,226.72,3.97]
[1757608149305,7.01,226.83,226.79,0.03002318]
[1757608149905,7.01,226.84,226.79,0.03002318]
[1757608151105,3.43042926,226.85,226.79,0.03002318]
[1757608151310,7.01,226.84,226.79,4.00002318]
[1757608151608,7.01,226.88,226.74,3.97]
[1757608151808,7.01,226.86,226.74,3.97]
[1757608152010,7.01,226.86,226.79,0.02857132]
[1757608153103,7.01,226.84,226.79,0.02857132]
[1757608156605,3.43042926,226.85,226.79,0.02857132]
[1757608157109,7.01,226.84,226.79,0.02857132]
[1757608161105,3.50126006,226.83,226.79,0.02857132]
[1757608161314,17.10251612,226.82,226.79,0.02857132]
[1757608161513,7.01,226.8,226.79,0.02857132]
[1757608161714,7.01,226.8,226.7,3.97]
[1757608165713,7.01,226.8,226.67,3.97]
[1757608166318,7.01,226.8,226.68,3.97]
[1757608167416,6.5992961,226.79,226.68,3.97]
[1757608167612,7.22,226.77,226.68,3.97]
[1757608172024,7.22,226.77,226.69,62.0]
[1757608172213,10.96,226.87,226.7,3.98]
[1757608172214,7.22,226.84,226.7,3.98]
[1757608172413,3.43042926,226.85,226.7,3.98]
[1757608172414,7.22,226.82,226.7,3.98]
[1757608175529,3.43042926,226.85,226.7,3.98]
[1757608175530,3.43042926,226.85,226.7,65.98]
[1757608175730,7.22,226.83,226.7,65.98]
[1757608175931,3.43042926,226.85,226.7,65.98]
[1757608176127,7.22,226.83,226.7,65.98]
[1757608176332,7.22,226.84,226.7,65.98]
[1757608176525,7.22,226.82,226.7,65.98]
[1757608176725,3.43042926,226.85,226.7,65.98]
[1757608176926,6.59714709,226.84,226.7,65.98]
[1757608177125,3.10397513,226.83,226.7,65.98]
[1757608177331,3.43042926,226.85,226.7,62.0]
[1757608177535,7.22,226.83,226.71,3.98]
[1757608180137,7.22,226.81,226.71,3.98]
[1757608186443,9.41481031,226.81,226.71,3.98]
[1757608187243,7.22,226.81,226.71,3.98]
[1757608187444,9.41481031,226.81,226.71,3.98]
[1757608190447,7.22,226.81,226.71,3.98]
[1757608190651,7.22,226.79,226.71,65.98]
[1757608191050,7.22,226.79,226.72,3.97]
[1757608191251,7.22,226.79,226.68,11.34153063]
[1757608191452,7.22,226.76,226.68,11.34153063]
[1757608193047,7.22,226.76,226.68,3.97]
[1757608195148,7.22,226.76,226.66,7.37153063]
[1757608195353,2.19481031,226.73,226.65,3.97]
[1757608195648,7.22,226.73,226.65,3.97]
[1757608198843,100.0,226.81,226.62,3.98]
[1757608198844,28.16,226.8,226.62,3.98]
[1757608199048,2.19481031,226.72,226.62,3.98]
[1757608199250,9.47481031,226.72,226.62,3.98]
[1757608200151,7.28,226.72,226.62,3.98]
[1757608200657,7.28,226.72,226.61,20.41957263]
[1757608200658,7.28,226.75,226.64,7.37153063]
[1757608200954,7.28,226.75,226.65,3.98]
[1757608201959,7.28,226.75,226.66,62.0]
[1757608202161,7.28,226.75,226.67,22.06]
[1757608202360,2.19481031,226.75,226.65,7.37153063]
[1757608202560,100.0,226.81,226.61,24.45399614]
[1757608202561,9.47481031,226.71,226.61,24.45399614]
[1757608202761,9.47481031,226.71,226.61,11.35153063]
[1757608202955,9.47481031,226.71,226.62,44.3]
[1757608203156,9.47481031,226.71,226.61,11.35153063]
[1757608203362,9.47481031,226.71,226.62,3.98]
[1757608203660,9.47481031,226.71,226.62,48.22]
[1757608204160,7.28,226.71,226.63,3.98]
[1757608204360,7.28,226.75,226.63,3.98]
[1757608204560,3.7259221,226.74,226.63,3.98]
[1757608204761,9.47481031,226.75,226.65,3.98]
[1757608205255,7.28,226.75,226.65,62.94]
[1757608205460,7.28,226.75,226.65,124.94]
[1757608206062,7.28,226.72,226.63,11.35153063]
[1757608206263,7.28,226.72,226.63,3.98]
[1757608209360,2.19481031,226.73,226.58,0.76774585]
[1757608209361,7.28,226.66,226.58,7.37153063]
[1757608209556,9.47481031,226.66,226.58,3.98]
[1757608210864,9.47481031,226.71,226.62,3.98]
[1757608211569,7.28,226.71,226.63,2.19481031]
[1757608212466,2.19481031,226.72,226.58,13.54634094]
[1757608212662,11.0022666,226.71,226.58,6.17481031]
[1757608212968,7.28,226.71,226.59,2.19481031]
[1757608213163,7.28,226.71,226.6,3.98]
[1757608214474,7.28,226.71,226.62,2.19481031]
[1757608215368,7.28,226.71,226.59,65.98]
[1757608215569,7.28,226.71,226.59,3.98]
[1757608216171,7.28,226.71,226.6,2.19481031]
[1757608216469,7.28,226.71,226.56,110.67153063]
[1757608216470,7.28,226.71,226.62,2.19481031]
[1757608216769,7.28,226.71,226.62,6.17481031]
[1757608217173,7.28,226.71,226.62,3.98]
[1757608222566,9.47481031,226.78,226.64,3.98]
[1757608222766,9.47481031,226.78,226.66,6.17481031]
[1757608222971,9.47481031,226.78,226.66,30.71481031]
[1757608222972,2.19481031,226.78,226.66,30.71481031]
[1757608223274,7.28,226.77,226.66,30.71481031]
[1757608223974,7.28,226.77,226.67,3.98]
[1757608224374,7.28,226.77,226.67,24.62]
[1757608224574,7.28,226.78,226.67,24.62]
[1757608224870,104.39686198,226.79,226.67,24.62]
[1757608225065,7.28,226.78,226.67,24.62]
[1757608225273,7.28,226.78,226.72,2.19481031]
[1757608225464,100.0,226.81,226.73,3.98]
[1757608225666,100.0,226.81,226.75,2.19481031]
[1757608225969,100.0,226.81,226.78,6.17481031]
[1757608226573,100.0,226.81,226.79,3.98]
[1757608227180,100.0,226.81,226.78,3.98]
[1757608227375,100.0,226.81,226.8,2.19481031]
[1757608227574,100.0,226.81,226.8,6.16481031]
[1757608228481,100.0,226.81,226.8,2.19481031]
[1757608228781,100.0,226.81,226.8,6.16481031]
[1757608229280,100.0,226.81,226.8,19.17283253]
[1757608229479,98.00820974,226.81,226.8,3.97]
[1757608229675,98.00820974,226.81,226.78,2.19481031]
[1757608229983,7.41,226.8,226.72,70.04]
[1757608230482,7.41,226.8,226.73,2.19481031]
[1757608230977,98.00820974,226.81,226.77,3.97]
[1757608232682,7.41,226.8,226.77,110.86]
[1757608233480,98.00820974,226.81,226.76,13.12346923]
[1757608233681,7.41,226.8,226.75,110.8]
[1757608233982,7.41,226.8,226.75,114.77]
[1757608234183,7.41,226.8,226.75,114.73]
[1757608234578,7.41,226.8,226.76,3.97]
[1757608235184,98.00820974,226.81,226.76,3.97]
[1757608235582,105.41820974,226.81,226.76,3.97]
[1757608236076,98.00820974,226.81,226.76,3.97]
[1757608236280,98.00820974,226.81,226.75,110.76]
[1757608236784,98.00820974,226.81,226.75,110.64]
[1757608237185,98.00820974,226.81,226.75,127.89465093]
[1757608238086,98.00820974,226.81,226.75,13.28465093]
[1757608238287,98.00820974,226.81,226.76,24.08]
[1757608238486,7.41,226.8,226.76,24.08]
[1757608238787,98.00820974,226.81,226.76,24.08]
[1757608238988,7.41,226.8,226.76,24.08]
[1757608239189,7.41,226.8,226.72,3.97]
[1757608239488,7.41,226.8,226.73,6.24]
[1757608239688,7.41,226.8,226.72,102.62]
[1757608239890,7.41,226.8,226.72,54.16433309]
[1757608240491,7.41,226.8,226.72,13.54433309]
[1757608240678,7.41,226.8,226.71,86.92]
[1757608241790,7.41,226.8,226.68,3.97]
[1757608241990,7.41,226.8,226.69,15.44]
[1757608242791,7.41,226.8,226.7,62.0]
[1757608244091,7.41,226.8,226.7,75.45824626]
[1757608244596,7.41,226.8,226.71,3.97]
[1757608245088,7.41,226.8,226.71,51.61]
[1757608246592,7.41,226.8,226.71,96.99]
[1757608246790,7.41,226.8,226.71,93.02]
[1757608246987,7.41,226.8,226.72,3.97]
[1757608247192,7.41,226.8,226.72,114.53]
[1757608247790,7.41,226.8,226.73,62.0]
[1757608248192,98.00820974,226.81,226.74,3.97]
[1757608251288,98.00820974,226.81,226.75,62.0]
[1757608252191,98.00820974,226.81,226.76,3.96]
[1757608252991,98.00820974,226.81,226.76,4.4]
[1757608253195,98.00820974,226.81,226.77,4.4]
[1757608253394,94.04820974,226.81,226.77,11.77153063]
[1757608253600,67.60461763,226.81,226.78,0.44]
[1757608253897,41.16102552,226.81,226.79,110.56]
[1757608254188,36.16102552,226.81,226.79,270.66747652]
[1757608254394,0.16102552,226.81,226.79,270.66747652]
[1757608254594,0.16102552,226.81,226.8,0.44]
[1757608254797,7.41,226.95,226.86,0.33897448]
[1757608254994,7.41,226.95,226.87,110.54]
[1757608256590,5.62998,226.98,226.88,62.0]
[1757608256993,5.62998,226.98,226.89,110.54]
[1757608257393,5.62998,226.98,226.88,62.0]
[1757608257591,5.62998,226.98,226.9,110.52]
[1757608258491,5.62998,226.98,226.88,62.0]
[1757608258697,3.42916736,226.95,226.89,103.74]
[1757608258899,6.9,226.94,226.86,103.74]
[1757608259896,6.9,226.94,226.79,195.99671973]
[1757608260099,6.9,226.94,226.8,110.5]
[1757608260697,3.42916736,226.95,226.79,195.99671973]
[1757608260893,5.62998,226.98,226.82,13.24]
[1757608261102,6.9,226.97,226.82,7.37153063]
[1757608261296,6.9,226.88,226.79,160.10747652]
[1757608261598,3.42916736,226.85,226.79,160.10747652]
[1757608261800,10.32916736,226.85,226.79,160.10747652]
[1757608261998,6.9,226.85,226.79,160.10747652]
[1757608262990,3.42916736,226.86,226.8,110.74]
[1757608263300,10.32916736,226.86,226.8,110.74]
[1757608263495,6.9,226.86,226.8,110.74]
[1757608263698,6.9,226.9,226.8,110.74]
[1757608265504,6.9,226.85,226.7,20.70556359]
[1757608265703,6.9,226.85,226.7,13.33403296]
[1757608265898,3.42916736,226.91,226.71,43.22]
[1757608265899,10.32916736,226.81,226.71,43.22]
[1757608268505,10.32916736,226.81,226.72,62.0]
[1757608269309,3.42916736,226.81,226.7,12.95306421]
[1757608269609,6.9,226.8,226.66,331.67152427]
[1757608269907,6.9,226.8,226.67,110.86]
[1757608270608,6.9,226.84,226.67,123.81859442]
[1757608272305,6.9,226.84,226.68,62.0]
[1757608276209,6.9,226.84,226.68,69.37153063]
[1757608277411,6.9,226.9,226.68,69.37153063]
[1757608277613,3.74958269,226.89,226.68,69.37153063]
[1757608277812,3.74958269,226.88,226.68,69.37153063]
[1757608278006,8.64499269,226.91,226.68,69.37153063]
[1757608278206,6.9,226.89,226.68,62.0]
[1757608278406,8.64499269,226.91,226.68,62.0]
[1757608278407,6.9,226.87,226.68,62.0]
[1757608278716,8.64499269,226.91,226.68,62.0]
[1757608278910,7.56083229,226.9,226.68,62.0]
[1757608279210,7.56083229,226.89,226.68,62.0]
[1757608279410,3.74959585,226.88,226.68,62.0]
[1757608279606,6.9,226.9,226.68,62.0]
[1757608279801,7.56078701,226.89,226.68,62.0]
[1757608280106,3.74957341,226.88,226.68,62.0]
[1757608280301,6.9,226.9,226.68,62.0]
[1757608280503,7.56074068,226.89,226.68,62.0]
[1757608280710,6.9,226.87,226.68,69.37153063]
[1757608281306,6.9,226.87,226.69,72.06]
[1757608283013,6.9,226.87,226.68,7.37153063]
[1757608283215,6.9,226.87,226.69,36.14]
[1757608284113,6.9,226.87,226.72,7.37153063]
[1757608284607,6.9,226.87,226.73,62.0]
[1757608285511,6.9,226.97,226.75,7.37153063]
[1757608285707,6.9,226.95,226.76,43.85153063]
[1757608286906,5.62998,226.98,226.76,43.85153063]
[1757608287106,3.75987657,226.97,226.77,24.32]
[1757608287405,5.62998,226.98,226.77,24.32]
[1757608287406,6.83,226.95,226.77,24.32]
[1757608287610,6.83,226.97,226.77,24.32]
[1757608287808,6.83,226.95,226.77,24.32]
[1757608288009,6.83,226.95,226.77,31.69153063]
[1757608288509,6.83,226.95,226.78,62.0]
[1757608290116,6.83,226.95,226.79,7.37153063]
[1757608291515,5.62998,226.98,226.79,7.37153063]
[1757608291816,5.62998,226.98,226.8,7.37153063]
[1757608292114,5.62998,226.98,226.81,7.37153063]
[1757608292310,5.62998,226.98,226.82,306.9349214]
[1757608292510,5.62998,226.98,226.83,7.37153063]
[1757608293116,5.62998,226.98,226.82,306.9349214]
[1757608293318,5.62998,226.98,226.85,62.0]
[1757608293518,5.62998,226.98,226.86,110.52]
[1757608294014,6.83,226.97,226.87,110.52]
[1757608294617,6.83,226.97,226.88,110.52]
[1757608295615,6.83,226.92,226.8,162.46005143]
[1757608295821,3.42339077,226.89,226.76,110.92]
[1757608296124,6.83,226.88,226.76,110.92]
[1757608296625,8.64055408,226.92,226.76,110.92]
[1757608296922,6.83,226.91,226.77,62.0]
[1757608297420,8.64055408,226.92,226.78,110.94]
[1757608297620,6.83,226.91,226.78,110.94]
[1757608298021,8.64055408,226.92,226.78,110.94]
[1757608298220,6.83,226.91,226.78,110.94]
[1757608298421,8.64055408,226.92,226.78,110.94]
[1757608299017,11.34,226.97,226.78,110.94]
[1757608299018,6.83,226.91,226.78,110.94]
[1757608299723,8.64055408,226.95,226.78,110.94]
[1757608300024,6.83,226.93,226.78,110.94]
[1757608300227,6.83,226.94,226.78,110.94]
[1757608300422,3.75853936,226.93,226.78,110.94]
[1757608300621,6.83,226.92,226.78,110.94]
[1757608301529,6.83,226.94,226.78,110.94]
[1757608301726,6.83,226.92,226.78,110.94]
[1757608301924,6.83,226.94,226.78,110.94]
[1757608302128,6.83,226.92,226.78,110.94]
[1757608302325,6.83,226.94,226.78,110.94]
[1757608302527,6.83,226.92,226.72,35.0988532]
[1757608302724,6.83,226.9,226.7,7.37153063]
[1757608302923,8.64055408,226.95,226.73,35.82]
[1757608303128,6.83,226.93,226.73,35.82]
[1757608303321,6.83,226.91,226.7,7.37153063]
[1757608303530,6.83,226.89,226.74,110.76]
[1757608303725,6.83,226.94,226.74,110.76]
[1757608304030,6.83,226.92,226.74,110.76]
[1757608304325,6.83,226.9,226.74,110.76]
[1757608304630,6.83,226.88,226.74,110.76]
[1757608305321,6.83,226.88,226.75,62.0]
[1757608305527,6.83,226.94,226.75,62.0]
[1757608305730,6.83,226.94,226.76,7.37153063]
[1757608306233,6.83,226.94,226.77,7.37153063]
[1757608308735,6.83,226.94,226.78,62.0]
[1757608309034,6.83,226.94,226.79,111.0]
[1757608309334,5.62998,226.98,226.78,62.0]
[1757608309335,6.83,226.97,226.78,62.0]
[1757608309531,7.57359713,226.96,226.79,111.0]
[1757608309731,3.76186206,226.95,226.8,111.0]
[1757608310034,3.76186206,226.94,226.8,111.0]
[1757608310233,10.84989953,226.98,226.8,111.0]
[1757608310234,6.83,226.92,226.8,111.0]
[1757608310924,6.83,226.92,226.69,311.14862704]
[1757608310925,3.76247155,226.91,226.74,110.98]
[1757608311129,5.21991953,226.93,226.74,110.98]
[1757608311130,6.83,226.89,226.74,110.98]
[1757608311431,6.83,226.92,226.74,110.98]
[1757608311734,7.57561656,226.91,226.74,110.98]
[1757608311932,6.83,226.89,226.74,110.98]
[1757608312628,5.21991953,226.88,226.74,110.98]
[1757608313036,6.83,226.87,226.74,110.98]
[1757608314040,6.83,226.87,226.75,62.0]
[1757608314831,5.21991953,226.88,226.73,95.78]
[1757608315132,10.68,226.95,226.73,95.78]
[1757608315133,6.83,226.82,226.73,95.78]
[1757608315330,6.83,226.82,226.69,296.1]
[1757608315635,6.83,226.82,226.7,111.36]
[1757608316730,6.83,226.82,226.69,296.1]
[1757608316934,6.83,226.82,226.7,111.38]
[1757608317435,6.83,226.82,226.69,296.1]
[1757608317635,6.83,226.82,226.7,111.3]
[1757608317835,6.83,226.82,226.7,173.3]
[1757608318732,6.83,226.82,226.7,62.0]
[1757608318733,6.99,226.82,226.7,62.0]
[1757608318938,6.99,226.82,226.71,111.28]
[1757608320537,2.19489532,226.79,226.72,111.18]
[1757608320736,4.94432591,226.95,226.72,111.18]
[1757608320936,6.99,226.87,226.72,111.18]
[1757608321137,2.19489532,226.84,226.72,111.18]
[1757608321531,9.18489532,226.87,226.72,111.18]
[1757608321932,2.19489532,226.87,226.74,2.19489532]
[1757608322138,9.18489532,226.87,226.72,111.18]
[1757608322333,6.99,226.87,226.72,111.18]
[1757608322939,6.99,226.87,226.73,111.18]
[1757608324237,6.99,226.87,226.75,62.0]
[1757608324437,5.22328701,226.86,226.75,62.0]
[1757608324636,6.99,226.84,226.69,296.1]
[1757608324832,6.99,226.84,226.7,93.8]
[1757608325434,5.22328701,226.86,226.69,296.1]
[1757608325631,6.99,226.84,226.69,296.1]
[1757608325834,6.99,226.85,226.69,296.1]
[1757608326033,5.22328701,226.86,226.7,111.14]
[1757608326034,3.75052111,226.84,226.7,111.14]
[1757608326341,5.22328701,226.86,226.7,111.14]
[1757608326538,6.99,226.84,226.7,111.14]
[1757608326739,6.99,226.85,226.7,111.14]
[1757608326934,5.22328701,226.81,226.67,12.95859442]
[1757608327140,6.99,226.8,226.68,111.14]
[1757608330640,5.22328701,226.79,226.68,111.14]
[1757608330837,6.99,226.78,226.68,111.14]
[1757608340945,6.99,226.82,226.68,111.14]
[1757608341139,3.75013749,226.81,226.68,111.14]
[1757608341338,6.99,226.82,226.68,111.14]
[1757608341538,3.75000119,226.81,226.68,111.14]
[1757608341743,6.99,226.8,226.68,111.14]
[1757608342445,2.19541216,226.77,226.68,111.14]
[1757608345042,2.19541216,226.77,226.65,13.46119178]
[1757608345245,2.19541216,226.77,226.66,110.64]
[1757608347047,2.19541216,226.8,226.66,110.64]
[1757608347245,2.19541216,226.83,226.68,2.19541216]
[1757608347441,2.19541216,226.86,226.71,2.19541216]
[1757608348356,7.21,226.85,226.71,2.19541216]
[1757608348544,2.19541216,226.83,226.67,7.37153063]
[1757608348744,2.19541216,226.83,226.69,2.19541216]
[1757608348941,2.19541216,226.83,226.7,71.92]
[1757608349251,2.19541216,226.83,226.71,110.64]
[1757608350138,2.19541216,226.83,226.69,2.19541216]
[1757608350341,2.19541216,226.83,226.72,62.0]
[1757608350938,2.19541216,226.86,226.73,110.64]
[1757608351344,9.40541216,226.86,226.73,110.64]
[1757608351843,2.19541216,226.86,226.73,110.64]
[1757608352042,2.19541216,226.88,226.74,2.19541216]
[1757608353850,7.21,226.9,226.77,2.19541216]
[1757608354450,7.21,226.9,226.74,7.37153063]
[1757608354639,7.21,226.9,226.77,2.19541216]
[1757608355450,2.19541216,226.91,226.77,2.19541216]
[1757608355655,9.40541216,226.94,226.8,2.19541216]
[1757608355853,7.21,226.94,226.81,21.96]
[1757608356046,108.90829635,226.97,226.81,21.96]
[1757608356047,108.90829635,226.97,226.83,2.19541216]
[1757608356552,7.82539216,226.98,226.84,57.56]
[1757608357344,5.62998,226.98,226.86,2.19541216]
[1757608358253,5.62998,226.98,226.87,100.7]
[1757608358254,7.82539216,226.98,226.87,100.7]
[1757608358456,7.82539216,226.98,226.88,38.7]
[1757608358657,7.82539216,226.98,226.87,62.0]
[1757608359049,7.82539216,226.98,226.88,86.18]
[1757608359849,7.82539216,226.98,226.89,110.6]
[1757608360555,7.82539216,226.98,226.87,62.0]
[1757608360753,2.19541216,226.95,226.9,110.58]
[1757608361054,2.19541216,226.95,226.87,62.0]
[1757608361254,2.19541216,226.95,226.88,110.58]
[1757608361654,5.62998,226.98,226.88,110.58]
[1757608361855,2.19541216,226.94,226.88,110.58]
[1757608363453,5.62998,226.98,226.88,110.58]
[1757608363659,2.19541216,226.94,226.89,110.58]
[1757608365351,2.19541216,226.94,226.9,110.56]
[1757608365658,2.19541216,226.94,226.91,110.56]
[1757608366455,5.62998,226.98,226.91,110.56]
[1757608369260,5.62998,226.98,226.91,123.54451297]
[1757608369553,5.62998,226.98,226.92,110.54]
[1757608371260,7.21,226.97,226.93,110.54]
[1757608371460,5.62998,226.98,226.93,110.54]
[1757608371862,5.62998,226.98,226.87,62.0]
[1757608372160,5.62998,226.98,226.88,110.54]
[1757608372460,5.62998,226.98,226.89,110.52]
[1757608374156,5.62998,226.98,226.87,62.0]
[1757608374357,5.62998,226.98,226.88,110.52]
[1757608375157,5.62998,226.98,226.88,124.03495503]
[1757608382359,5.62998,226.98,226.88,13.51495503]
[1757608382567,5.62998,226.98,226.89,110.48]
[1757608385665,5.62998,226.98,226.88,13.20243765]
[1757608385666,5.62998,226.98,226.9,110.48]
[1757608385860,5.62998,226.98,226.88,47.97691048]
[1757608386057,10.23306555,226.97,226.89,86.44]
[1757608386266,10.23306555,226.97,226.9,86.44]
[1757608386465,10.23306555,226.97,226.91,110.46]
[1757608386659,3.42306555,226.97,226.81,26.40081402]
[1757608386857,6.81,226.96,226.81,61.85245653]
[1757608387060,6.81,226.96,226.82,53.68]
[1757608387562,6.81,226.96,226.81,13.33211321]
[1757608387766,6.81,226.88,226.82,41.72]
[1757608388070,3.42306555,226.89,226.83,62.0]
[1757608388265,10.23306555,226.89,226.83,62.0]
[1757608388765,10.23306555,226.89,226.82,41.72]
[1757608389765,10.23306555,226.89,226.83,110.46]
[1757608389961,6.81,226.88,226.83,110.46]
[1757608390157,6.81,226.84,226.7,34.8444598]
[1757608390362,6.81,226.8,226.71,49.8]
[1757608390562,6.81,226.8,226.71,62.75895354]
[1757608390961,3.42306555,226.84,226.71,62.75895354]
[1757608391168,6.81,226.85,226.71,62.75895354]
[1757608391667,6.81,226.85,226.72,62.0]
[1757608393163,6.81,226.85,226.73,110.48]
[1757608393365,3.42306555,226.87,226.73,110.48]
[1757608393568,6.81,226.89,226.73,110.48]
[1757608393765,3.42306555,226.91,226.71,12.95895354]
[1757608393766,6.81,226.86,226.71,12.95895354]
[1757608394066,6.81,226.86,226.72,68.76]
[1757608396269,6.81,226.86,226.73,62.0]
[1757608398965,6.81,226.9,226.72,76.13153063]
[1757608399169,6.81,226.9,226.72,89.37153063]
[1757608399572,6.81,226.9,226.73,20.61153063]
[1757608400162,6.81,226.9,226.74,7.37153063]
[1757608401071,6.81,226.9,226.75,7.37153063]
[1757608401267,3.42306555,226.92,226.76,20.61153063]
[1757608401473,3.42306555,226.92,226.72,81.99]
[1757608401474,3.42306555,226.92,226.77,20.61153063]
[1757608401971,3.42306555,226.92,226.81,62.0]
[1757608402279,10.23306555,226.92,226.82,29.26]
[1757608403872,10.23306555,226.92,226.78,7.37153063]
[1757608404069,6.81,226.91,226.79,40.56]
[1757608404776,3.42306555,226.92,226.79,40.56]
[1757608404964,6.81,226.91,226.79,40.56]
[1757608405677,6.81,226.91,226.8,62.0]
[1757608407782,3.42306555,226.92,226.8,62.0]
[1757608407982,3.42306555,226.88,226.8,62.0]
[1757608408184,7.38,226.86,226.8,62.0]
[1757608413584,7.38,226.86,226.79,74.08]
[1757608414593,7.38,226.86,226.72,7.37153063]
[1757608414785,7.38,226.86,226.73,97.16]
[1757608415686,3.42306555,226.8,226.71,13.34666378]
[1757608415991,7.38,226.79,226.72,61.52]
[1757608416588,7.38,226.79,226.73,62.0]
[1757608416794,7.38,226.79,226.72,61.52]
[1757608424697,3.42306555,226.81,226.72,61.52]
[1757608426602,7.38,226.83,226.72,61.52]